bitfinex/quotes_SOLUSD_20251117
["timestamp","ask_amount","ask_price","bid_price","bid_amount"]
[1763362031753,0.68,141.11,141.08,25.46876769]
[1763362033023,3.01756769,141.13,141.09,0.66]
[1763362033024,0.2,141.13,141.09,0.66]
[1763362033230,0.2,141.13,141.12,2.81756769]
[1763362033754,0.2,141.13,141.12,3.47756769]
[1763362034054,0.2,141.16,141.12,3.47756769]
[1763362034244,0.2,141.16,141.15,2.81756769]
[1763362035249,0.2,141.16,141.15,33.21342939]
[1763362039948,0.2,141.17,141.15,33.21342939]
[1763362040150,0.2,141.17,141.16,3.48756769]
[1763362041328,0.2,141.17,141.16,10.5717275]
[1763362042145,0.2,141.18,141.17,2.81756769]
[1763362042346,0.2,141.18,141.17,3.48756769]
[1763362042743,0.2,141.18,141.17,33.22242569]
[1763362043558,0.2,141.19,141.17,33.22242569]
[1763362043756,0.2,141.19,141.18,3.48756769]
[1763362044936,0.2,141.19,141.18,2.47160041]
[1763362045154,0.2,141.19,141.18,9.55475666]
[1763362045961,0.2,141.19,141.18,31.29116847]
[1763362047261,0.2,141.19,141.18,22.40641181]
[1763362047560,0.2,141.19,141.18,24.20801222]
[1763362049639,0.2,141.19,141.18,21.73641181]
[1763362049843,0.2,141.19,141.17,32.20631411]
[1763362050053,0.2,141.19,141.18,0.67]
[1763362050463,0.2,141.19,141.18,23.3212]
[1763362050675,0.2,141.19,141.18,23.3512]
[1763362050864,0.2,141.19,141.18,44.82606038]
[1763362052061,0.2,141.19,141.18,46.62766079]
[1763362052258,0.86,141.19,141.18,21.47486038]
[1763362052448,0.86,141.19,141.16,1.80160041]
[1763362052651,0.66,141.18,141.17,22.6512]
[1763362052974,0.66,141.18,141.15,1.80160041]
[1763362053179,0.66,141.18,141.15,2.50160041]
[1763362053378,0.2,141.19,141.16,2.50160041]
[1763362053676,0.86,141.19,141.16,2.50160041]
[1763362054173,0.86,141.19,141.16,24.16452942]
[1763362054375,0.86,141.19,141.16,2.50160041]
[1763362057175,0.2,141.19,141.17,1.80160041]
[1763362057378,0.2,141.19,141.17,2.50160041]
[1763362057574,0.2,141.19,141.18,1.80160041]
[1763362059164,0.2,141.19,141.18,25.15280041]
[1763362059888,0.2,141.19,141.18,24.45280041]
[1763362060756,0.2,141.19,141.18,22.6512]
[1763362062281,0.2,141.19,141.18,24.45280041]
[1763362062582,0.2,141.19,141.18,25.15280041]
[1763362062769,0.2,141.19,141.18,32.23595666]
[1763362063983,0.2,141.2,141.18,32.23595666]
[1763362064162,0.2,141.2,141.19,2.50160041]
[1763362064357,0.2,141.22,141.21,22.6512]
[1763362064595,0.2,141.22,141.21,24.45280041]
[1763362064878,0.2,141.22,141.21,25.15280041]
[1763362066181,0.86,141.22,141.21,24.45280041]
[1763362066483,0.86,141.22,141.2,22.6512]
[1763362066781,0.66,141.21,141.18,2.8377851]
[1763362067088,0.66,141.21,141.17,1.80160041]
[1763362067967,0.66,141.21,141.18,22.6512]
[1763362069073,0.66,141.21,141.17,2.50160041]
[1763362071872,0.66,141.21,141.17,1.80160041]
[1763362072075,1.80160041,141.19,141.16,22.6512]
[1763362072280,0.66,141.21,141.17,22.6512]
[1763362072472,1.80160041,141.19,141.17,22.6512]
[1763362072880,0.66,141.18,141.17,22.6512]
[1763362076988,1.80160041,141.21,141.17,22.6512]
[1763362077304,0.66,141.2,141.16,31.53681193]
[1763362077486,0.86,141.22,141.19,1.80160041]
[1763362077810,0.86,141.22,141.19,2.50160041]
[1763362078101,0.66,141.21,141.19,1.80160041]
[1763362078701,0.66,141.21,141.18,2.50160041]
[1763362079490,0.2,141.22,141.18,1.80160041]
[1763362079792,0.86,141.22,141.18,2.50160041]
[1763362080195,0.2,141.22,141.18,2.50160041]
[1763362080396,0.66,141.21,141.18,2.50160041]
[1763362080598,0.9,141.22,141.19,0.72]
[1763362080795,0.7,141.21,141.18,2.52160041]
[1763362082085,0.7,141.21,141.18,0.72]
[1763362082706,0.7,141.21,141.18,2.52160041]
[1763362084304,0.7,141.21,141.18,9.60463854]
[1763362084489,0.2,141.22,141.19,2.52160041]
[1763362084806,0.9,141.22,141.19,2.52160041]
[1763362085309,0.7,141.21,141.2,22.6512]
[1763362085702,0.2,141.22,141.21,22.6512]
[1763362085892,0.2,141.22,141.21,25.17280041]
[1763362086994,0.2,141.22,141.21,32.25445185]
[1763362087914,0.2,141.22,141.21,25.17280041]
[1763362088210,0.2,141.22,141.21,23.3712]
[1763362088414,0.2,141.22,141.21,22.6512]
[1763362088712,0.2,141.22,141.21,24.45280041]
[1763362090513,2.70160041,141.22,141.17,1.80160041]
[1763362091017,0.7,141.21,141.18,22.6512]
[1763362091614,0.7,141.21,141.17,24.45280041]
[1763362091815,0.7,141.21,141.17,2.52160041]
[1763362093015,0.7,141.21,141.18,2.52160041]
[1763362093201,0.7,141.21,141.18,1.80160041]
[1763362094201,0.7,141.21,141.17,2.52160041]
[1763362094520,0.7,141.21,141.17,9.60525188]
[1763362095013,0.7,141.21,141.17,2.52160041]
[1763362095223,0.7,141.21,141.16,29.73518095]
[1763362095424,0.7,141.21,141.16,31.53678136]
[1763362095596,0.7,141.21,141.16,32.25678136]
[1763362096098,0.7,141.21,141.17,1.80160041]
[1763362096926,0.7,141.21,141.16,23.3712]
[1763362097102,0.7,141.21,141.16,25.17280041]
[1763362098124,0.7,141.21,141.17,0.7]
[1763362098328,0.7,141.21,141.17,2.50160041]
[1763362099132,0.7,141.21,141.18,1.80160041]
[1763362099434,0.2,141.22,141.19,24.45280041]
[1763362099724,0.2,141.22,141.2,1.80160041]
[1763362100096,0.92,141.22,141.2,1.80160041]
[1763362100302,0.92,141.22,141.19,2.50160041]
[1763362100925,0.72,141.21,141.18,22.6512]
[1763362101119,0.72,141.21,141.18,23.3512]
[1763362101702,0.72,141.21,141.18,25.15280041]
[1763362104349,0.92,141.22,141.19,2.50160041]
[1763362105212,0.92,141.22,141.19,0.7]
[1763362105834,0.2,141.22,141.18,24.45280041]
[1763362106003,0.72,141.21,141.18,22.6512]
[1763362106202,0.2,141.22,141.18,29.73425612]
[1763362106437,0.92,141.22,141.19,0.7]
[1763362106940,0.72,141.21,141.18,3.5153306]
[1763362107405,0.72,141.21,141.17,23.3512]
[1763362107602,0.72,141.21,141.17,26.1665306]
[1763362108017,0.72,141.21,141.17,22.6512]
[1763362108018,3.5353306,141.21,141.17,22.6512]
[1763362108220,2.8153306,141.2,141.17,22.6512]
[1763362108418,3.5353306,141.2,141.17,22.6512]
[1763362108614,3.5353306,141.19,141.15,21.46210178]
[1763362108931,2.8153306,141.16,141.13,17.02]
[1763362109101,2.8153306,141.14,141.13,17.02]
[1763362109501,3.5353306,141.14,141.13,17.02]
[1763362110515,0.72,141.14,141.13,17.02]
[1763362111937,3.5153306,141.16,141.13,17.02]
[1763362112431,0.7,141.15,141.13,17.02]
[1763362112636,3.5153306,141.15,141.13,17.02]
[1763362113228,2.8153306,141.15,141.13,17.02]
[1763362113433,0.7,141.14,141.13,17.02]
[1763362113934,3.5153306,141.15,141.13,17.02]
[1763362114602,2.8153306,141.16,141.13,17.02]
[1763362114805,2.8153306,141.16,141.13,17.73]
[1763362115032,0.7,141.16,141.13,17.73]
[1763362116430,114.68882769,141.2,141.14,0.71]
[1763362116431,3.5153306,141.18,141.14,0.71]
[1763362116941,0.7,141.17,141.14,0.71]
[1763362120351,3.5153306,141.17,141.12,26.1765306]
[1763362120722,0.7,141.16,141.12,26.1765306]
[1763362121149,0.7,141.16,141.13,0.71]
[1763362122360,3.5153306,141.16,141.12,22.6512]
[1763362122529,2.8153306,141.15,141.12,22.6512]
[1763362122861,0.7,141.15,141.12,23.3612]
[1763362123245,3.5153306,141.16,141.13,0.71]
[1763362124271,2.8153306,141.16,141.12,22.6512]
[1763362124557,3.5153306,141.16,141.13,0.71]
[1763362126656,0.7,141.15,141.12,22.6512]
[1763362126832,0.7,141.15,141.12,23.3612]
[1763362127154,0.7,141.15,141.12,22.6512]
[1763362127352,3.5153306,141.15,141.12,22.6512]
[1763362127735,0.7,141.14,141.12,22.6512]
[1763362128260,3.5153306,141.15,141.12,22.6512]
[1763362129833,3.5153306,141.15,141.12,23.3612]
[1763362130059,0.7,141.15,141.12,23.3612]
[1763362130263,0.7,141.17,141.13,0.71]
[1763362130563,2.8153306,141.17,141.13,0.71]
[1763362130746,0.7,141.16,141.13,0.71]
[1763362131149,0.7,141.16,141.12,26.1765306]
[1763362133137,0.7,141.16,141.12,25.4665306]
[1763362133476,0.7,141.16,141.13,0.71]
[1763362134059,3.5153306,141.18,141.14,2.8153306]
[1763362134238,0.7,141.18,141.14,2.8153306]
[1763362134439,0.7,141.18,141.15,0.71]
[1763362136245,3.5153306,141.18,141.15,0.71]
[1763362136444,0.7,141.18,141.15,0.71]
[1763362137371,108.4153306,141.2,141.15,3.5253306]
[1763362137536,0.7,141.19,141.16,0.71]
[1763362138570,3.5153306,141.19,141.14,2.8153306]
[1763362138777,3.5153306,141.19,141.15,0.71]
[1763362139067,3.5153306,141.18,141.15,0.71]
[1763362139576,0.7,141.17,141.13,3.5253306]
[1763362139761,3.5153306,141.17,141.12,25.4665306]
[1763362140077,3.5153306,141.17,141.12,26.1765306]
[1763362140370,0.7,141.16,141.12,26.1765306]
[1763362140976,0.7,141.16,141.13,0.69]
[1763362143165,9.78882769,141.19,141.12,25.4665306]
[1763362143368,2.8153306,141.17,141.13,2.8153306]
[1763362143782,2.8153306,141.17,141.12,23.3412]
[1763362143783,2.8153306,141.17,141.12,26.1565306]
[1763362144075,3.4653306,141.16,141.13,0.69]
[1763362144275,3.4653306,141.16,141.12,23.3412]
[1763362144590,0.65,141.15,141.12,23.3412]
[1763362145089,0.65,141.15,141.12,26.1565306]
[1763362145794,2.8153306,141.13,141.08,20.5253306]
[1763362145966,2.8153306,141.11,141.08,17.02]
[1763362146175,2.8153306,141.1,141.08,17.02]
[1763362146384,0.65,141.09,141.08,17.02]
[1763362146994,2.8153306,141.1,141.08,17.02]
[1763362147201,3.4653306,141.1,141.06,0.69]
[1763362147358,3.4653306,141.1,141.07,23.3412]
[1763362147786,0.65,141.1,141.07,23.3412]
[1763362149993,114.68882769,141.15,141.07,25.4665306]
[1763362150161,0.65,141.14,141.1,2.8153306]
[1763362150673,0.65,141.14,141.11,3.5053306]
[1763362151253,3.4653306,141.16,141.11,3.5053306]
[1763362151663,0.65,141.15,141.12,0.69]
[1763362152877,104.9,141.18,141.12,0.69]
[1763362153176,0.65,141.15,141.12,0.69]
[1763362153391,3.4653306,141.15,141.12,0.69]
[1763362153577,2.8153306,141.14,141.1,22.6512]
[1763362153775,3.4653306,141.14,141.1,23.3412]
[1763362153986,0.65,141.13,141.1,23.3412]
[1763362155860,2.8153306,141.14,141.11,0.69]
[1763362156062,3.4653306,141.14,141.11,0.69]
[1763362156473,2.8153306,141.14,141.1,26.1565306]
[1763362156679,0.65,141.13,141.1,26.1565306]
[1763362156900,3.4853306,141.14,141.1,26.1565306]
[1763362157089,0.67,141.13,141.1,26.1565306]
[1763362157494,3.4853306,141.14,141.11,0.71]
[1763362158096,2.8153306,141.14,141.1,25.4665306]
[1763362158397,3.4853306,141.14,141.1,26.1765306]
[1763362158593,3.4853306,141.14,141.11,0.71]
[1763362158894,0.67,141.13,141.1,26.1765306]
[1763362159086,0.67,141.13,141.1,3.5253306]
[1763362159694,2.8153306,141.15,141.1,2.8153306]
[1763362159998,117.50415829,141.18,141.11,3.5253306]
[1763362159999,2.8153306,141.16,141.11,3.5253306]
[1763362160192,2.8153306,141.16,141.12,2.8153306]
[1763362160506,0.67,141.15,141.12,3.5253306]
[1763362160982,0.67,141.15,141.11,0.71]
[1763362161181,0.67,141.15,141.11,3.5253306]
[1763362161792,0.67,141.15,141.12,0.71]
[1763362165072,3.4853306,141.15,141.12,0.71]
[1763362166871,2.4737417,141.15,141.12,0.71]
[1763362171913,1.8037417,141.15,141.12,0.71]
[1763362172105,0.71,141.14,141.11,0.72]
[1763362172605,2.5137417,141.15,141.11,0.72]
[1763362175697,2.5137417,141.14,141.1,22.6512]
[1763362175913,1.8037417,141.14,141.1,22.6512]
[1763362176220,0.71,141.13,141.1,23.3712]
[1763362176606,2.5137417,141.15,141.11,0.72]
[1763362177213,0.71,141.14,141.11,0.72]
[1763362180426,0.71,141.15,141.11,2.5237417]
[1763362180917,0.71,141.15,141.12,0.72]
[1763362191039,2.5137417,141.15,141.12,0.72]
[1763362193635,0.71,141.15,141.12,0.72]
[1763362198443,1.8037417,141.14,141.1,22.6512]
[1763362198649,0.71,141.13,141.1,23.3712]
[1763362198821,0.71,141.13,141.1,22.6512]
[1763362199022,0.71,141.13,141.11,0.72]
[1763362200345,0.71,141.13,141.1,23.3712]
[1763362200961,0.71,141.13,141.1,22.6512]
[1763362201448,0.71,141.13,141.1,23.3212]
[1763362202333,0.71,141.13,141.1,25.1249417]
[1763362202542,0.71,141.13,141.11,0.67]
[1763362203155,0.71,141.13,141.1,25.1249417]
[1763362203524,1.8037417,141.15,141.11,0.67]
[1763362203768,0.66,141.14,141.11,0.67]
[1763362204047,0.66,141.15,141.11,2.4737417]
[1763362204429,0.66,141.15,141.12,0.67]
[1763362205559,0.66,141.15,141.12,2.4737417]
[1763362207146,0.66,141.15,141.12,0.67]
[1763362207351,0.66,141.15,141.11,2.4737417]
[1763362207950,0.66,141.15,141.11,1.8037417]
[1763362208154,0.66,141.15,141.12,0.67]
[1763362209271,1.8037417,141.17,141.12,2.4737417]
[1763362209564,0.66,141.15,141.12,0.67]
[1763362215254,1.8037417,141.17,141.12,9.55986024]
[1763362215443,104.9,141.18,141.14,1.8037417]
[1763362215444,107.3637417,141.18,141.14,1.8037417]
[1763362215649,105.56,141.18,141.14,1.8037417]
[1763362215940,0.66,141.17,141.15,0.67]
[1763362216763,1.8037417,141.19,141.15,0.67]
[1763362217071,2.4637417,141.18,141.15,0.67]
[1763362217248,2.4637417,141.18,141.13,8.88902652]
[1763362217454,2.4637417,141.17,141.13,0.72]
[1763362217773,2.4637417,141.17,141.14,0.72]
[1763362218149,0.66,141.17,141.14,0.72]
[1763362220667,0.66,141.17,141.14,2.5237417]
[1763362220961,0.66,141.17,141.15,0.72]
[1763362221351,0.66,141.17,141.14,0.72]
[1763362221553,0.66,141.17,141.15,0.72]
[1763362222666,114.88882769,141.22,141.15,0.72]
[1763362222869,0.66,141.18,141.15,0.72]
[1763362223963,1.8037417,141.19,141.15,9.60818353]
[1763362224166,2.4637417,141.19,141.15,9.60818353]
[1763362224364,2.4637417,141.19,141.16,0.72]
[1763362225149,0.66,141.19,141.16,0.72]
[1763362225354,2.4637417,141.19,141.16,0.72]
[1763362225671,107.3637417,141.21,141.17,1.8037417]
[1763362225974,0.66,141.2,141.17,1.8037417]
[1763362226156,2.0037417,141.22,141.18,2.5237417]
[1763362226345,0.66,141.21,141.18,2.5237417]
[1763362227067,0.66,141.21,141.18,0.72]
[1763362230982,3.47576781,141.21,141.17,9.89924892]
[1763362231378,0.69,141.2,141.17,10.56924892]
[1763362232277,0.69,141.2,141.17,9.89924892]
[1763362232451,0.69,141.2,141.18,0.67]
[1763362233172,3.01576781,141.22,141.18,0.67]
[1763362233472,0.69,141.2,141.18,0.67]
[1763362234055,0.69,141.21,141.18,0.67]
[1763362234254,0.2,141.22,141.18,10.56872879]
[1763362234486,0.2,141.22,141.19,2.81576781]
[1763362234692,0.2,141.22,141.2,0.67]
[1763362234852,0.2,141.22,141.2,3.48576781]
[1763362235254,0.2,141.22,141.21,0.67]
[1763362236267,0.2,141.22,141.21,10.56741925]
[1763362237700,0.2,141.22,141.21,13.40460051]
[1763362241581,0.2,141.22,141.21,10.5888327]
[1763362241773,0.2,141.22,141.21,13.40460051]
[1763362243981,0.2,141.22,141.21,23.3212]
[1763362244190,0.2,141.22,141.21,26.13696781]
[1763362244498,0.2,141.22,141.21,33.21861925]
[1763362245572,0.2,141.22,141.21,36.05600176]
[1763362247298,0.2,141.22,141.21,33.24023395]
[1763362247488,0.2,141.22,141.21,36.05600176]
[1763362247998,0.2,141.22,141.21,3.50738251]
[1763362248199,0.2,141.22,141.21,28.97435032]
[1763362248904,0.2,141.22,141.21,36.05600176]
[1763362260617,0.2,141.22,141.21,28.97435032]
[1763362261617,0.2,141.22,141.21,36.05600176]
[1763362262207,0.2,141.23,141.21,36.05600176]
[1763362262531,0.2,141.25,141.23,7.08064858]
[1763362262699,0.2,141.25,141.24,5.63153562]
[1763362262901,0.2,141.25,141.24,6.35153562]
[1763362263427,0.2,141.25,141.24,9.18811328]
[1763362264499,0.2,141.25,141.24,33.28792492]
[1763362264728,0.2,141.25,141.24,38.91946054]
[1763362267399,0.2,141.26,141.24,38.91946054]
[1763362267599,0.2,141.26,141.25,35.9757955]
[1763362267795,0.71,141.32,141.27,22.6512]
[1763362268096,0.71,141.32,141.3,2.81576781]
[1763362268309,0.71,141.32,141.31,2.81576781]
[1763362268519,0.71,141.32,141.29,22.6512]
[1763362268520,0.71,141.32,141.3,2.81576781]
[1763362269242,0.71,141.32,141.29,25.46696781]
[1763362271229,0.71,141.32,141.3,2.81576781]
[1763362272124,0.71,141.32,141.29,25.46696781]
[1763362273127,2.81576781,141.31,141.29,3.01576781]
[1763362273331,2.81576781,141.31,141.27,24.31700772]
[1763362273535,0.71,141.3,141.27,24.31700772]
[1763362274606,0.71,141.3,141.27,21.50123991]
[1763362274816,0.71,141.3,141.26,5.83153562]
[1763362275035,3.52576781,141.3,141.26,5.83153562]
[1763362275417,0.71,141.29,141.26,5.83153562]
[1763362276926,0.71,141.29,141.25,25.46696781]
[1763362277134,0.71,141.29,141.25,25.68757652]
[1763362277322,0.71,141.29,141.26,2.81576781]
[1763362280243,0.71,141.29,141.26,3.50576781]
[1763362280450,0.68,141.31,141.28,25.46696781]
[1763362280918,0.68,141.31,141.29,2.81576781]
[1763362283848,3.49576781,141.31,141.26,21.66731194]
[1763362284032,3.49576781,141.31,141.27,2.81576781]
[1763362284234,3.49576781,141.3,141.26,21.27433251]
[1763362284440,3.49576781,141.3,141.25,2.81576781]
[1763362284636,0.68,141.29,141.25,24.78010032]
[1763362285138,0.68,141.32,141.27,22.6512]
[1763362285340,0.68,141.32,141.29,2.81576781]
[1763362285731,0.68,141.32,141.28,24.08708344]
[1763362285944,0.68,141.32,141.27,22.6512]
[1763362286130,0.68,141.32,141.28,3.50576781]
[1763362286534,0.68,141.32,141.28,2.81576781]
[1763362288661,3.49576781,141.32,141.28,2.81576781]
[1763362288878,0.68,141.31,141.28,2.81576781]
[1763362289244,0.68,141.31,141.28,0.69]
[1763362290259,0.68,141.31,141.27,46.73828344]
[1763362290478,0.68,141.31,141.27,47.42828344]
[1763362290774,0.68,141.31,141.27,46.40196781]
[1763362291266,0.68,141.31,141.27,43.92251563]
[1763362291451,2.47945218,141.31,141.27,22.6512]
[1763362291649,0.68,141.31,141.27,22.6512]
[1763362291837,0.68,141.3,141.27,22.6512]
[1763362292036,0.68,141.3,141.27,23.3312]
[1763362292265,0.68,141.3,141.27,43.92402396]
[1763362292955,0.68,141.3,141.27,44.60402396]
[1763362293139,0.68,141.3,141.27,46.40347614]
[1763362293865,0.68,141.33,141.29,1.79945218]
[1763362294066,0.68,141.33,141.3,0.68]
[1763362294256,0.68,141.32,141.3,23.06925968]
[1763362295158,0.68,141.32,141.3,22.6512]
[1763362295357,1.99945218,141.34,141.31,2.47945218]
[1763362295358,0.2,141.34,141.31,2.47945218]
[1763362295558,0.2,141.34,141.33,1.79945218]
[1763362295765,0.2,141.34,141.32,1.79945218]
[1763362295973,0.2,141.34,141.33,2.83537125]
[1763362297250,0.88,141.34,141.3,22.6512]
[1763362297553,1.79945218,141.33,141.3,22.6512]
[1763362297753,2.47945218,141.33,141.3,22.6512]
[1763362297953,0.68,141.32,141.29,4.63562759]
[1763362298580,1.79945218,141.33,141.29,4.63562759]
[1763362298581,0.68,141.33,141.3,25.13065218]
[1763362299589,0.68,141.33,141.3,2.47945218]
[1763362299887,0.68,141.33,141.31,1.29945218]
[1763362301171,0.68,141.33,141.31,4.13522545]
[1763362302878,0.2,141.34,141.31,4.81522545]
[1763362303183,0.88,141.34,141.31,4.81522545]
[1763362303352,0.88,141.34,141.32,1.79945218]
[1763362303883,0.88,141.34,141.31,5.31522545]
[1763362304381,0.2,141.34,141.31,4.63522545]
[1763362304564,0.68,141.33,141.31,4.63522545]
[1763362304883,0.88,141.34,141.31,5.31522545]
[1763362306384,0.88,141.34,141.31,3.51577327]
[1763362306685,0.88,141.34,141.31,5.31522545]
[1763362310079,0.2,141.34,141.31,5.31522545]
[1763362310264,0.88,141.34,141.31,5.31522545]
[1763362310964,0.68,141.33,141.31,1.79945218]
[1763362311157,0.88,141.34,141.31,2.47945218]
[1763362312481,0.2,141.34,141.32,2.47945218]
[1763362312985,0.88,141.34,141.32,1.79945218]
[1763362313485,0.88,141.34,141.31,12.39153862]
[1763362313683,0.88,141.34,141.31,9.55596637]
[1763362317375,0.88,141.34,141.31,2.47945218]
[1763362320087,0.88,141.34,141.32,1.79945218]
[1763362320273,0.2,141.34,141.32,2.47945218]
[1763362320469,0.2,141.34,141.33,23.3212]
[1763362320694,0.2,141.34,141.33,24.45065218]
[1763362321477,0.2,141.35,141.33,34.90947987]
[1763362321684,0.2,141.35,141.34,23.3212]
[1763362321884,0.87,141.35,141.34,22.6512]
[1763362322385,0.2,141.35,141.34,24.45065218]
[1763362322584,0.2,141.35,141.34,1.79945218]
[1763362322790,0.87,141.35,141.34,22.6512]
[1763362323093,0.2,141.35,141.34,22.6512]
[1763362323692,0.87,141.35,141.34,22.6512]
[1763362323895,0.87,141.35,141.32,2.46945218]
[1763362324085,0.2,141.35,141.33,1.79945218]
[1763362324289,0.2,141.35,141.33,2.46945218]
[1763362324713,0.2,141.35,141.33,25.12065218]
[1763362324881,0.87,141.35,141.33,25.12065218]
[1763362325212,0.2,141.35,141.33,25.12065218]
[1763362325381,0.87,141.35,141.33,25.12065218]
[1763362325905,0.2,141.35,141.33,25.12065218]
[1763362326783,0.87,141.35,141.32,0.67]
[1763362326989,0.87,141.35,141.33,22.6512]
[1763362327192,0.87,141.35,141.33,24.45065218]
[1763362327587,0.87,141.35,141.33,1.79945218]
[1763362327796,0.87,141.35,141.32,23.3212]
[1763362328004,0.2,141.35,141.33,22.6512]
[1763362328212,0.87,141.35,141.33,22.6512]
[1763362328794,0.87,141.35,141.33,24.45065218]
[1763362329002,0.2,141.35,141.33,25.12065218]
[1763362329202,0.2,141.35,141.34,1.79945218]
[1763362329613,0.87,141.35,141.34,1.79945218]
[1763362329797,0.2,141.35,141.34,1.79945218]
[1763362331014,0.87,141.35,141.34,1.79945218]
[1763362331808,0.2,141.35,141.34,1.79945218]
[1763362331997,0.2,141.35,141.34,9.54459014]
[1763362332198,0.2,141.35,141.34,1.79945218]
[1763362332705,0.2,141.35,141.33,25.12065218]
[1763362332904,0.87,141.35,141.33,1.79945218]
[1763362333102,0.2,141.35,141.33,1.79945218]
[1763362333302,0.2,141.35,141.33,2.46945218]
[1763362333601,0.2,141.35,141.34,1.79945218]
[1763362333806,0.2,141.35,141.33,2.46945218]
[1763362334022,0.87,141.35,141.33,2.46945218]
[1763362334223,0.87,141.35,141.33,1.79945218]
[1763362334427,0.2,141.35,141.33,2.46945218]
[1763362342812,0.7,141.34,141.29,9.91244591]
[1763362343130,0.7,141.34,141.3,2.51945218]
[1763362343628,0.7,141.34,141.31,22.6512]
[1763362344428,0.7,141.34,141.31,25.17065218]
[1763362344673,0.7,141.34,141.32,0.72]
[1763362345126,0.7,141.34,141.31,25.17065218]
[1763362345497,0.2,141.35,141.32,2.51945218]
[1763362345922,0.9,141.35,141.32,2.51945218]
[1763362346302,0.2,141.35,141.32,2.51945218]
[1763362346626,0.9,141.35,141.32,2.51945218]
[1763362347739,0.7,141.34,141.32,2.51945218]
[1763362351743,0.2,141.35,141.33,0.72]
[1763362351920,0.87,141.35,141.33,0.72]
[1763362352121,1.79945218,141.34,141.31,22.6512]
[1763362352321,1.79945218,141.33,141.31,22.6512]
[1763362352538,2.46945218,141.33,141.31,22.6512]
[1763362352733,0.67,141.32,141.28,17.0]
[1763362353150,3.48163838,141.32,141.28,17.0]
[1763362353641,0.67,141.31,141.28,17.0]
[1763362357320,0.67,141.31,141.28,17.72]
[1763362358348,0.67,141.31,141.29,22.6512]
[1763362360037,0.67,141.31,141.29,23.3712]
[1763362360543,0.67,141.31,141.29,22.6512]
[1763362362149,0.67,141.31,141.28,0.72]
[1763362364351,0.67,141.31,141.27,2.81163838]
[1763362364550,0.67,141.31,141.27,3.53163838]
[1763362365653,3.48163838,141.31,141.27,0.72]
[1763362366253,0.67,141.3,141.27,0.72]
[1763362367557,0.67,141.33,141.29,25.46283838]
[1763362367743,0.67,141.33,141.3,2.81163838]
[1763362367943,0.67,141.33,141.3,3.53163838]
[1763362368351,0.67,141.33,141.31,0.72]
[1763362368738,0.67,141.33,141.3,3.53163838]
[1763362370258,0.67,141.33,141.3,2.81163838]
[1763362370448,0.87,141.35,141.31,3.53163838]
[1763362370754,3.68163838,141.35,141.29,22.6512]
[1763362370959,0.67,141.34,141.29,22.6512]
[1763362371165,0.67,141.34,141.29,26.18283838]
[1763362371666,0.67,141.34,141.29,25.46283838]
[1763362371839,0.67,141.34,141.29,26.18283838]
[1763362372340,0.67,141.34,141.29,23.3712]
[1763362372736,0.67,141.34,141.29,26.18283838]
[1763362373445,0.67,141.34,141.3,0.72]
[1763362376438,0.67,141.34,141.3,3.53163838]
[1763362377057,0.67,141.34,141.31,3.53163838]
[1763362378257,0.2,141.35,141.32,0.72]
[1763362378558,0.87,141.35,141.32,0.72]
[1763362378965,0.67,141.34,141.32,0.72]